Cogmind - Beta 15 @@@ ROGUE MODE // 2025.07.20 @ 14:53:25 Player: the Result: Destroyed by as-30600 with Assembled Heavy Rifle Performance ------------- Evolutions (0) 0 Regions Visited (3) 600 Robots Destroyed (31) 155 Value Destroyed (474) 474 Prototype IDs (1) 20 Alien Tech Used (0) 0 Bonus (-66) -66 TOTAL SCORE: 1183 Bonus ------- Friendly Fire -66 Cogmind --------- Core Integrity 0/250 Matter 211/300 Energy 250/250 System Corruption 0% Temperature Cool (0) Movement Treading (160) Location -10/Exiles Parts ------- > --- POWER (1) -------- Ion Engine > --- PROPULSION (2) --- Light Treads > --- UTILITY (2) ------ (None) > --- WEAPON (2) ------- Assault Rifle > --- INVENTORY (5) ---- Light Treads Light Treads Large Storage Unit Medium Laser Peak State ------------ > --- POWER ------------ Ion Engine > --- PROPULSION ------- Light Treads Light Treads > --- UTILITY ---------- Bomb Drone Bay > --- WEAPON ----------- Assault Rifle Mini Grenade Launcher > --- INVENTORY -------- Large Storage Unit Medium Laser Assault Rifle [Rating: 20] Favorites ----------- Power Ion Engine Engine Ion Engine Power Core Light Nuclear Core Propulsion Light Treads Treads Light Treads Utility High-capacity Storage Unit Device Seismic Detector Storage High-capacity Storage Unit Protection Light Armor Plating Weapon Assault Rifle Ballistic Gun Assault Rifle Launcher Mini Grenade Launcher Special Weapon Mining Laser Build | -11 -10 -10 -10 ------- Run | Yrd Mat Min Exi Slots Evolved . | . . . . Power . | . . . . Propulsion . | . . . . Utility . | . . . . Weapon . | . . . . Parts Attached 23 | 7 10 3 3 Power 5 | 1 2 2 . Engine 3 | 1 1 1 . Core 2 | . 1 1 . Reactor . | . . . . Propulsion 4 | 2 . . 2 Treads 4 | 2 . . 2 Leg . | . . . . Wheel . | . . . . Hover . | . . . . Flight . | . . . . Utility 9 | 2 6 . 1 Device 4 | 1 2 . 1 Storage 3 | 1 2 . . Processor . | . . . . Hackware . | . . . . Protection 2 | . 2 . . Artifact . | . . . . Weapon 5 | 2 2 1 . Energy Gun . | . . . . Energy Cannon . | . . . . Ballistic Gun 3 | 2 1 . . Ballistic Cannon . | . . . . Launcher 1 | . . 1 . Special Weapon 1 | . 1 . . Impact Weapon . | . . . . Slashing Weapon . | . . . . Piercing Weapon . | . . . . Special Melee Weapon . | . . . . Unidentified Prototypes 1 | . . . 1 Parts Lost 3 | . . . 3 Power . | . . . . Propulsion 1 | . . . 1 Utility 1 | . . . 1 Weapon 1 | . . . 1 Highest Loss Streak 3 | . . . 3 To Critical Strikes 1 | . . . 1 Average Backups 16 | 3 15 19 16 Power 1 | . 1 . . Propulsion 3 | . 3 4 3 Utility 6 | . 6 8 7 Weapon 4 | 1 3 6 5 Tool/Special . | . . . . Unused Backups 15 | . 4 . 11 Power 1 | . 1 . . Propulsion 2 | . . . 2 Utility 7 | . 2 . 5 Weapon 5 | . 1 . 4 Tool/Special . | . . . . Average Slot Usage (%) 99 | . 99 100 97 Engine 9 | . 6 11 14 Core 4 | . 6 2 . Treads 27 | . 27 28 28 Device 5 | . 10 . 1 Storage 13 | . 14 14 11 Protection 8 | . 3 14 12 Ballistic Gun 22 | . 27 18 15 Launcher 5 | . . 9 12 Peak Build Rating 20 | 7 12 13 20 Average Rating 10 | 6 9 11 12 On Entrance 7 | . 7 12 12 Naked Turns . | . . . . Heaviest Build 52 | 13 52 52 51 Greatest Support 40 | 40 40 40 40 Greatest Overweight (x) 1 | . 1 1 1 Average Overweight (x) . | . . 1 . Largest Inventory Capacity 20 | 8 20 20 20 Average Capacity 17 | 7 16 20 17 Most Carried 20 | 7 20 20 20 Average Carried 16 | 3 15 19 17 Final Capacity 20 | 8 20 20 5 Final Carried 20 | 6 20 20 4 Class Distribution -------------------- 100% | Mutant Dominant Class ---------------- Mutant | -10/Materials Mutant | -10/Mines Mutant | -10/Exiles Resources | -11 -10 -10 -10 ----------- Run | Yrd Mat Min Exi Matter Collected 1268 | 367 745 156 . Remotely . | . . . . Salvage Created 986 | 184 611 191 . Parts 60 | 9 46 5 . Haulers Intercepted 1 | . 1 . . Recyclers Shooed 5 | . 2 3 . Parts Field Recycled . | . . . . Retrieved Matter . | . . . . Parts Self-Destructed . | . . . . Prevented . | . . . . Kills | -11 -10 -10 -10 ------- Run | Yrd Mat Min Exi Combat Hostiles Destroyed 12 | . 10 2 . Guns 12 | . 10 2 . Classes Destroyed 11 | 3 7 1 . Worker 3 | 2 1 . . Builder 1 | . 1 . . Tunneler 5 | 3 2 . . Hauler 1 | . 1 . . Recycler 4 | 1 1 2 . Mechanic 1 | . 1 . . Operator 2 | . 2 . . Watcher 2 | . 2 . . Swarmer 6 | . 6 . . Grunt 4 | . 4 . . Demolisher 2 | . . 2 . Best Kill Streak 4 | 3 4 2 . Combat Bots Only 3 | . 3 2 . Max Kills in Single Turn 1 | 1 1 1 . Gunslinging . | . . . . Exploded . | . . . . Melee . | . . . . Uniques/NPCs Destroyed . | . . . . Combat | -11 -10 -10 -10 -------- Run | Yrd Mat Min Exi Hostile Shots Fired 84 | . 58 5 21 Missed 26 | . 18 . 8 Hits 58 | . 40 5 13 Projectile 58 | . 40 5 13 AOE 5 | . . 5 . Critical Strikes 3 | . . . 3 Damage Taken 1319 | . 358 183 778 Core 259 | . 64 52 143 Absorbed by Shields . | . . . . Regen/Repaired (Parts) 96 | . 96 . . Core Remaining (%) 100 | 100 . . . Volleys Fired 98 | 11 57 27 3 Largest 2 | 2 2 2 2 Hottest 100 | 40 100 40 40 Shots Fired 178 | 22 113 38 5 Gun 174 | 22 112 35 5 Cannon . | . . . . Launcher 3 | . . 3 . Special 1 | . 1 . . Kinetic 174 | 22 112 35 5 Thermal 1 | . 1 . . Explosive 3 | . . 3 . Electromagnetic . | . . . . Robot Hit Streak 11 | 7 7 11 10 Robot Miss Streak 5 | 1 5 2 . Penetration Max . | . . . . Secondary Targets 1 | . 1 . . Max Gunslinging Chain 1 | . 1 . . Shots Hit Robots 104 | 14 58 27 5 Core Hits 44 | 6 30 8 . Critical Kills 1 | 1 . . . Critical Parts Destroyed 1 | . 1 . . Critical Strikes 2 | 1 1 . . Destroy 2 | 1 1 . . Melee Attacks . | . . . . Impact . | . . . . Slashing . | . . . . Piercing . | . . . . Sneak Attacks . | . . . . Combat Hostiles . | . . . . Follow-up Attacks . | . . . . Damage Inflicted 1356 | 201 757 343 55 Guns 1356 | 201 757 343 55 Cannons . | . . . . Explosions . | . . . . Melee . | . . . . Ramming . | . . . . Kinetic 1356 | 201 757 343 55 Thermal . | . . . . Explosive . | . . . . Electromagnetic . | . . . . Impact . | . . . . Slashing . | . . . . Piercing . | . . . . Highest Corruption . | . . . . Average Corruption . | . . . . Corruption Purged . | . . . . Corruption Blocked . | . . . . Overload Shots . | . . . . Overflow Damage . | . . . . Projectiles . | . . . . Explosions . | . . . . Melee . | . . . . Knockbacks . | . . . . Impact . | . . . . Kinetic . | . . . . Secondary . | . . . . Self-Inflicted Damage . | . . . . Shots . | . . . . Rammed . | . . . . Targets Rammed . | . . . . Kicked . | . . . . Crushed . | . . . . Highest Temperature 20 | 6 20 . . Average Temperature 8 | 6 8 . . Received Heat Transfer 51 | . 51 . . Siege Activations . | . . . . Martial Activations . | . . . . Shielding Activations . | . . . . Robots Disrupted . | . . . . Combat Hostiles . | . . . . Robots Corrupted . | . . . . Combat Hostiles . | . . . . Parts Fried . | . . . . Impact Corruptions . | . . . . Robots Melted . | . . . . Combat Hostiles . | . . . . Parts Melted . | . . . . Heat Transferred . | . . . . Parts Sabotaged . | . . . . Parts Stolen . | . . . . Parts Stripped . | . . . . Power Chain Reactions . | . . . . Alert | -11 -10 -10 -10 ------- Run | Yrd Mat Min Exi Maximum Alert Level . | . . . . Low Security (%) 100 | 100 100 100 . Level 1 . | . . . . Level 2 . | . . . . Level 3 . | . . . . Level 4 . | . . . . Level 5 . | . . . . High Security . | . . . . Max Security . | . . . . Peak Influence 115 | 10 115 50 . Initial . | . . . . Average 16 | 1 25 4 . Influence Increases 529 | 30 427 72 . Destroy 0b10 Robot/C 240 | . 200 40 . Destroy 0b10 Robot/NC 95 | 30 55 10 . Destroy Leader 66 | . 56 10 . Successful Hack 22 | . 22 . . Destroy Structure 16 | . 4 12 . Lose Combat Pursuer 90 | . 90 . . Influence Decreases 529 | 30 427 72 . Time Decay 495 | 30 393 72 . Purge Threat 34 | . 34 . . Squads Dispatched 2 | . 2 . . Investigation . | . . . . Extermination . | . . . . Reinforcement 2 | . 2 . . Assault . | . . . . Garrison . | . . . . Intercept . | . . . . Searches Triggered . | . . . . Construction Impeded . | . . . . Haulers Reinforced . | . . . . Active Scanning Responses . | . . . . Cargo Convoy Interrupts . | . . . . Stealth | -11 -10 -10 -10 --------- Run | Yrd Mat Min Exi Distress Signals 3 | . 3 . . Communications Jammed . | . . . . Distress Signals . | . . . . Times Spotted 33 | . 26 2 5 Peak Tracking Total 9 | . 3 2 9 Tactical Retreats 4 | . 4 . . Traps | -11 -10 -10 -10 ------- Run | Yrd Mat Min Exi Traps Triggered . | . . . . Indirectly . | . . . . Trap Hack Attempts . | . . . . Triggered . | . . . . Disarmed . | . . . . Reprogrammed . | . . . . Reused . | . . . . Traps Extracted . | . . . . Installed . | . . . . Triggered . | . . . . Machines | -11 -10 -10 -10 ---------- Run | Yrd Mat Min Exi Machines Disabled . | . . . . Max in Single Turn . | . . . . Machines Repaired . | . . . . Machines Dismantled . | . . . . Machines Sabotaged . | . . . . Overloaded Fab Kills . | . . . . Hacking | -11 -10 -10 -10 --------- Run | Yrd Mat Min Exi Machines Accessed 7 | . 6 1 . Terminals 5 | . 5 . . Fabricators . | . . . . Repair Stations 1 | . 1 . . Recycling Units . | . . . . Scanalyzers . | . . . . Garrison Access . | . . . . Total Hacks 20 | . 19 1 . Successful 12 | . 11 1 . Failed 7 | . 7 . . Catastrophic . | . . . . Database Lockouts 1 | . 1 . . Manual 10 | . 10 . . Terminals 15 | . 15 . . Fabricators . | . . . . Repair Stations 4 | . 4 . . Recycling Units . | . . . . Scanalyzers . | . . . . Garrison Access . | . . . . Terminal Hacks 8 | . 7 1 . Part Schematic 1 | . 1 . . Robot Schematic 1 | . 1 . . Robot Analysis 1 | . 1 . . Open Door 1 | . . 1 . Unreport Threat 1 | . 1 . . Locate Traps 1 | . 1 . . Hauler Manifests 1 | . 1 . . Zone Layout 1 | . 1 . . Fabricator Hacks . | . . . . Repair Station Hacks 3 | . 3 . . Scan Component 2 | . 2 . . Repair 1 | . 1 . . Recycling Unit Hacks . | . . . . Scanalyzer . | . . . . Garrison Access Hacks . | . . . . Unauthorized Hacks 1 | . 1 . . Terminals 1 | . 1 . . Botnet 1 | . 1 . . Fabricators . | . . . . Repair Stations . | . . . . Recycling Units . | . . . . Scanalyzers . | . . . . Garrison Access . | . . . . Data Cores Recovered 1 | . 1 . . Used . | . . . . Hacking Detections 6 | . 6 . . Full Trace Events . | . . . . Feedback Events . | . . . . Feedback Blocked . | . . . . Robot Schematics Acquired 1 | . 1 . . Robots Built . | . . . . Authchips . | . . . . Time . | . . . . Total Robot Build Rating . | . . . . Part Schematics Acquired 1 | . 1 . . Parts Built . | . . . . Authchips . | . . . . Time . | . . . . Total Part Build Rating . | . . . . Parts Repaired 1 | . 1 . . Time 26 | . 26 . . Parts Recycled . | . . . . Recycled Matter . | . . . . Retrieved Matter . | . . . . Retrieved Components . | . . . . Parts Scanalyzed . | . . . . Part Schematics Acquired . | . . . . Parts Damaged . | . . . . Bothacking | -11 -10 -10 -10 ------------ Run | Yrd Mat Min Exi Used RIF Installer . | . . . . Robots Hacked . | . . . . Non-combat . | . . . . Combat . | . . . . Robot Hacks Applied . | . . . . Relay Couplers Released . | . . . . Fabnet Peak Effective % . | . . . . Robots Rewired . | . . . . Allies Hacked . | . . . . Hacks Repelled . | . . . . Allies | -11 -10 -10 -10 -------- Run | Yrd Mat Min Exi Total Allies . | . . . . Largest Group . | . . . . Highest-Rated Group . | . . . . Highest-Rated Ally . | . . . . Total Orders . | . . . . Ally Attacks 10 | . . . 10 Total Damage . | . . . . Kills . | . . . . Allies Corrupted . | . . . . Allies Melted . | . . . . Intel | -11 -10 -10 -10 ------- Run | Yrd Mat Min Exi Active Infowar (turns) 1268 | 96 1172 . . Structural 6 | . 6 . . Seismic 1262 | 96 1166 . . Robot Analysis Total 1 | . 1 . . Derelict Logs Recovered . | . . . . Drone Launches 16 | . . . 16 Drone Recoveries 2 | . . . 2 Exploration | -11 -10 -10 -10 ------------- Run | Yrd Mat Min Exi Turns Passed 3341 | 151 1580 883 727 Spaces Moved 1380 | 65 677 336 302 Core 3 | 3 . . . Treads 1377 | 62 677 336 302 Legs . | . . . . Wheels . | . . . . Hover . | . . . . Flight . | . . . . Fastest Speed 50 | 50 160 240 160 Average Speed 206 | 154 184 240 228 Slowest Speed 240 | 160 240 240 240 Overloaded Moves . | . . . . Propulsion Burnouts . | . . . . Robots Hopped . | . . . . Potential Cave-ins . | . . . . Cave-ins Triggered . | . . . . Exploration Rate (%) 58 | 5 93 77 59 Regions Visited 3 Branch Regions 2 Pre-discovered Areas . | . . . . Known Exits Taken . | . . . . Unknown Exits Taken 3 | 1 1 1 . Scrap Searched . | . . . . Spaces Dug 1 | . 1 . . Terrain Destroyed 29 | . 1 28 . Melee . | . . . . Projectile 1 | . 1 . . AOE 28 | . . 28 . Terrain Rammed . | . . . . Walls Destroyed . | . . . . Machines Disabled . | . . . . Actions | -11 -10 -10 -10 --------- Run | Yrd Mat Min Exi Total 1691 | 90 894 374 333 Wait 126 | . 104 3 19 Move 1377 | 64 676 335 302 Hop . | . . . . Pick Up 32 | 7 24 1 . Fast Attach 10 | 7 2 . 1 Attach 4 | . 1 1 2 Detach . | . . . . Swap 23 | . 16 5 2 Drop 21 | 1 14 2 4 Fire 98 | 11 57 27 3 Melee . | . . . . Ram . | . . . . Kick . | . . . . Crush . | . . . . Escape Stasis . | . . . . Rewire . | . . . . Trap . | . . . . Miscellaneous . | . . . . Route ------- -11/Scrapyard -10/Materials (discovered 5 exits: [*Mat x3] / *Min / [*Sub]) -10/Mines (discovered 2 exits: [*Exi] / [*Sub]) -10/Exiles History --------- Turn | Location | Event 11 | -11/Scrapyard | Discovered new exit (range 15) 152 | -11/Scrapyard | Entered Materials 153 | -10/Materials | Met a group of wandering Federalists 316 | -10/Materials | Build established: Mutant 350 | -10/Materials | Discovered new exit (range 13) 764 | -10/Materials | Discovered new exit (range 13) 833 | -10/Materials | Discovered new exit (range 15) 859 | -10/Materials | Discovered new exit (range 10) 1074 | -10/Materials | Repaired Lgt. Treads 1383 | -10/Materials | Central database locked down 1502 | -10/Materials | Discovered new exit (range 8) 1732 | -10/Materials | Entered Mines 1892 | -10/Mines | Assembled infested the area 1900 | -10/Mines | Found the Drone Emporium 1912 | -10/Mines | Found Prototype Device 2423 | -10/Mines | Discovered new exit (range 12) 2603 | -10/Mines | Deemed a non-threat by the Exiles lab entrance 2603 | -10/Mines | Discovered new exit (range 5) 2615 | -10/Mines | Entered Exiles 2673 | -10/Exiles | Met 8R-AWN 2709 | -10/Exiles | Met EX-HEX 2788 | -10/Exiles | Met EX-BIN 2819 | -10/Exiles | Met EX-DEC 2895 | -10/Exiles | Visited The Gauntlet 3241 | -10/Exiles | Identified Bomb Drone Bay 3335 | -10/Exiles | Attacked by the Exiles 3337 | -10/Exiles | Core integrity fell below 50% 3338 | -10/Exiles | Core integrity fell below 20% 3342 | -10/Exiles | Destroyed by as-30600 with Assembled Heavy Rifle Last Messages --------------- (repair cost: 7). 03337_ Bomb Drone detonates. 03337_ Bomb Drone destroyed. 03337_ Bomb Drone detonates. 03337_ Bomb Drone destroyed. 03337_ Bomb Drone Bay destroyed. 03337_ Penetrated by HV Slug. 03337_ HV Slug penetrates Machine. 03337_ Machine disabled. 03337_ Penetrated by HV Slug. 03337_ Critical hit (Destroy). 03337_ Assault Rifle destroyed. 03337_ HV Slug penetrates Machine. 03338_ The unstable cave ceiling collapses. 03340_ HV Slug penetrates Machine. 03340_ HV Slug penetrates Wall. 03340_ Penetrated by HV Slug. 03340_ HV Slug penetrates Wall. 03340_ Lgt. Treads destroyed. 03342_ The unstable cave ceiling collapses. Map ----- +----------------------------------------------------+ | """????????????????????????????????????????????? | | """#???????????????????????????????????????????? | | """#???????????????????????????????????????????? | | """#???????????????????????????????????????????? | | """#???????????????????????????????????????????? | | """"???????????????????????????????????????????? | | """#???????????????????????????????????????????? | | " """"???????????????????????????????????????????? | | " #???????????????????????????????????????????? | | """""#???????????????????????????????????????????? | | ######???????????????????????????????????????????? | | ?????????????????????????????????????????????????? | | ?????????????????????????????????????????????????? | | ?????????????????????????????????????????????????? | | ?###########???????????????????????????????????? | | ##"""""""""##???????????#######????????????????? | | " """ """"##???????#### # ###??????????????# | | "" " #??????## ###??????????## | | " """#??????# # #??????????# | | " "#??????# #??????????# | | " "##????## # #?????????## | | ""###??# g # #????????## | | ! """#???# # #????????# | | !! "#??## #??????### # | | !]! ##?# ######## # | | =| #### @ """"## #? | | "! ### a * ## | | * # | | # | | a ###"""""#### | | #" ##?#######??#### * | | ######??????????????##### | | ##???????????????????????### | | " a ##??????????????????????????### | | """ ""#?????????????????????????????### | | " ""#" "##??????????????????????????????#" | | "" """##"""""""##???????????????????????????????## | | #""""###########?????????????????????????????????? | | ######???????????????????????????????????????????? | | ?????????????????????????????????????????????????? | | ?????????????????????????????????????????????????? | | ?????????????????????????????????????????????????? | | ?????????????????????????????????????????????????? | | ?????????????????????????????????????????????????? | | ?????????????????????????????????????????????????? | | ?????????????????????????????????????????????????? | | ?????????????????????????????????????????????????? | | ?????????????????????????????????????????????????? | | ?????????????????????????????????????????????????? | | ?????????????????????????????????????????????????? | +----------------------------------------------------+ Best States ------------- Heat Dissipation 25 Energy Generation 14 Energy Capacity 250 Matter Stores 300 Matter Capacity 300 Sight Range 16 Terrain Scan Density 10 Armor Coverage 150 Evasion (%) 40 Recoil Reduction 2 Item Schematics ----------------- Hcp. Storage Unit | -10/Materials | Hacked Robot Schematics ------------------ S-10 Pest | -10/Materials | Hacked Fabricated ------------ Nothing Repaired ---------- Lgt. Treads | 31% | -10/Materials Alien Tech Used ----------------- None Achievements -------------- None Challenges ------------ None Game ------ Seed TerrabombCoordinationPower Manual? 0 Play Time 00:19:21 Cumulative 190.6 hours Start 2025.07.20 @ 14:36:30 End 2025.07.20 @ 14:53:25 Sessions 1 Manual Loads 0 Difficulty Rogue Special Mode None Game No. 136 Rogue 136 Adventurer 0 Explorer 0 Win Type - Total 2 Types 2/0/0/0/0/0/0/0/0/0 Lore% 63 Gallery% 58 Achievement% 51 Wizard Run 0 Options --------- Layout 1 ASCII 0 Keyboard 0 Movement Mouse Keybinds 0 Fullscreen 1 Font 32/SmallcapsGlow Map View 50x35 Zoom Use 0% Tactical HUD 1 Map Filters NONE Filters NONE Steam 1 RUN: 3f6758e3-daf1-42ef-85db-4b1b4aeb30c4